[Event "December 5 Early 2023"]
[Site "https://www.chess.com"]
[Date "2023.12.05"]
[Round "8"]
[White "Papasimakopoulos, Alexandros"]
[Black "Rietze, Clemens, Dr."]
[Result "0-1"]
[Board "89"]
[TimeControl "180+1"]
[WhiteFideId "4244125"]
[BlackFideId "24620351"]
[WhiteElo "2645"]
[BlackElo "2515"]
[WhiteTeam "GRE"]
[BlackTeam "GER"]
[WhiteClock "0:00:14"]
[BlackClock "0:00:10"]

1. d4 {[%clk 0:03:00]}  d5 {[%clk 0:02:57]} 2. c4 {[%clk 0:03:01]}  e6 {[%clk 0:02:57]} 3. Nc3 {[%clk 0:03:01]}  Bb4 {[%clk 0:02:57]} 4. cxd5 {[%clk 0:03:01]}  exd5 {[%clk 0:02:57]} 5. Qa4+ {[%clk 0:03:02]}  Nc6 {[%clk 0:02:57]} 6. Nf3 {[%clk 0:03:02]}  Nf6 {[%clk 0:02:51]} 7. Bg5 {[%clk 0:03:03]}  Qd6 {[%clk 0:02:51]} 8. Bxf6 {[%clk 0:02:54]}  Qxf6 {[%clk 0:02:52]} 9. e3 {[%clk 0:02:54]}  O-O {[%clk 0:02:51]} 10. Be2 {[%clk 0:02:54]}  Rd8 {[%clk 0:02:51]} 11. O-O {[%clk 0:02:54]}  Bf8 {[%clk 0:02:48]} 12. Rfc1 {[%clk 0:02:52]}  Be6 {[%clk 0:02:46]} 13. a3 {[%clk 0:02:50]}  a6 {[%clk 0:02:39]} 14. Qd1 {[%clk 0:02:46]}  Bd6 {[%clk 0:02:31]} 15. Na4 {[%clk 0:02:46]}  Ne7 {[%clk 0:02:30]} 16. Nc5 {[%clk 0:02:45]}  Bc8 {[%clk 0:02:30]} 17. b4 {[%clk 0:02:44]}  b6 {[%clk 0:02:27]} 18. Nd3 {[%clk 0:02:44]}  Ng6 {[%clk 0:02:13]} 19. g3 {[%clk 0:02:43]}  Bd7 {[%clk 0:02:11]} 20. Rc3 {[%clk 0:02:41]}  a5 {[%clk 0:02:10]} 21. Rac1 {[%clk 0:02:31]}  axb4 {[%clk 0:02:07]} 22. Nxb4 {[%clk 0:02:28]}  Ne7 {[%clk 0:02:00]} 23. Ne1 {[%clk 0:02:22]}  Ba4 {[%clk 0:01:30]} 24. Qd2 {[%clk 0:02:17]}  c5 {[%clk 0:01:30]} 25. dxc5 {[%clk 0:02:16]}  bxc5 {[%clk 0:01:31]} 26. Nbd3 {[%clk 0:01:53]}  d4 {[%clk 0:01:28]} 27. exd4 {[%clk 0:01:51]}  cxd4 {[%clk 0:01:25]} 28. Rc4 {[%clk 0:01:42]}  Bb5 {[%clk 0:01:15]} 29. R4c2 {[%clk 0:01:41]}  Bxa3 {[%clk 0:01:15]} 30. Rb1 {[%clk 0:01:40]}  Bd7 {[%clk 0:01:07]} 31. Bf3 {[%clk 0:01:35]}  Rab8 {[%clk 0:01:03]} 32. Qa5 {[%clk 0:01:24]}  Bd6 {[%clk 0:00:46]} 33. Kg2 {[%clk 0:01:19]}  Nc6 {[%clk 0:00:36]} 34. Qa1 {[%clk 0:01:16]}  Rxb1 {[%clk 0:00:30]} 35. Qxb1 {[%clk 0:01:17]}  Ne5 {[%clk 0:00:25]} 36. Nxe5 {[%clk 0:01:14]}  Qxe5 {[%clk 0:00:25]} 37. Nd3 {[%clk 0:01:03]}  Qf6 {[%clk 0:00:24]} 38. Rd2 {[%clk 0:00:48]}  Bf5 {[%clk 0:00:24]} 39. Qb7 {[%clk 0:00:45]}  g6 {[%clk 0:00:20]} 40. h4 {[%clk 0:00:42]}  h5 {[%clk 0:00:20]} 41. Qc6 {[%clk 0:00:39]}  Be7 {[%clk 0:00:19]} 42. Qb7 {[%clk 0:00:34]}  Rd7 {[%clk 0:00:19]} 43. Qa8+ {[%clk 0:00:34]}  Rd8 {[%clk 0:00:19]} 44. Qb7 {[%clk 0:00:33]}  Kg7 {[%clk 0:00:19]} 45. Nf4 {[%clk 0:00:32]}  Rd7 {[%clk 0:00:18]} 46. Qa8 {[%clk 0:00:30]}  Rd8 {[%clk 0:00:17]} 47. Qa5 {[%clk 0:00:26]}  Qd6 {[%clk 0:00:11]} 48. Nxh5+ {[%clk 0:00:22]}  Kh7 {[%clk 0:00:10]} 49. Nf4 {[%clk 0:00:21]}  Bf6 {[%clk 0:00:11]} 50. Nd5 {[%clk 0:00:20]}  Be5 {[%clk 0:00:11]} 51. Qb6 {[%clk 0:00:17]}  Qxb6 {[%clk 0:00:09]} 52. Nxb6 {[%clk 0:00:17]}  d3 {[%clk 0:00:09]} 53. Nc4 {[%clk 0:00:18]}  Bc3 {[%clk 0:00:09]} 54. Rd1 {[%clk 0:00:18]}  d2 {[%clk 0:00:10]} 55. Ne3 {[%clk 0:00:18]}  Bd3 {[%clk 0:00:09]} 56. g4 {[%clk 0:00:13]}  Bb5 {[%clk 0:00:09]} 57. Be4 {[%clk 0:00:13]}  Ba4 {[%clk 0:00:09]} 58. Bc2 {[%clk 0:00:14]}  Bb5 {[%clk 0:00:09]} 59. Kf3 {[%clk 0:00:14]}  Kg7 {[%clk 0:00:09]} 60. g5 {[%clk 0:00:13]}  Bc6+ {[%clk 0:00:10]} 61. Be4 {[%clk 0:00:13]}  Bb5 {[%clk 0:00:10]} 62. Bc2 {[%clk 0:00:12]}  Rd4 {[%clk 0:00:10]} 63. Nf1 {[%clk 0:00:10]}  Bc6+ {[%clk 0:00:07]} 64. Ke3 {[%clk 0:00:10]}  Rxh4 {[%clk 0:00:05]} 65. Nxd2 {[%clk 0:00:10]}  Rh3+ {[%clk 0:00:05]} 66. Ke2 {[%clk 0:00:10]}  Bb5+ {[%clk 0:00:05]} 67. Nc4 {[%clk 0:00:05]}  Bxc4+ {[%clk 0:00:05]} 68. Bd3 {[%clk 0:00:05]}  Bxd3+ {[%clk 0:00:04]} 69. Rxd3 {[%clk 0:00:06]}  Rxd3 {[%clk 0:00:04]} 70. Kxd3 {[%clk 0:00:07]}  Be5 {[%clk 0:00:03]} 71. Ke4 {[%clk 0:00:08]}  Bd6 {[%clk 0:00:04]} 72. f4 {[%clk 0:00:08]}  Bb4 {[%clk 0:00:04]} 73. f5 {[%clk 0:00:08]}  gxf5+ {[%clk 0:00:04]} 74. Kxf5 {[%clk 0:00:09]}  Bd2 {[%clk 0:00:05]} 75. g6 {[%clk 0:00:09]}  fxg6+ {[%clk 0:00:05]} 76. Kg4 {[%clk 0:00:10]}  Kh6 {[%clk 0:00:05]} 77. Kh4 {[%clk 0:00:09]}  Bg5+ {[%clk 0:00:06]} 78. Kg4 {[%clk 0:00:10]}  Bf6 {[%clk 0:00:07]} 79. Kf4 {[%clk 0:00:10]}  g5+ {[%clk 0:00:07]} 80. Kg4 {[%clk 0:00:11]}  Kg6 {[%clk 0:00:07]} 81. Kg3 {[%clk 0:00:11]}  Kf5 {[%clk 0:00:08]} 82. Kf3 {[%clk 0:00:12]}  g4+ {[%clk 0:00:08]} 83. Kg3 {[%clk 0:00:13]}  Be5+ {[%clk 0:00:09]} 84. Kg2 {[%clk 0:00:13]}  Kf4 {[%clk 0:00:09]} 85. Kf2 {[%clk 0:00:13]}  g3+ {[%clk 0:00:10]} 86. Kg2 {[%clk 0:00:14]}  Kg4 {[%clk 0:00:11]} 87. Kh1 {[%clk 0:00:15]}  Kh3 {[%clk 0:00:10]} 88. Kg1 {[%clk 0:00:15]}  g2 {[%clk 0:00:10]} 89. Kf2 {[%clk 0:00:14]}  Bd4+ {[%clk 0:00:10]} 0-1

[Event "December 5 Early 2023"]
[Site "https://www.chess.com"]
[Date "2023.12.05"]
[Round "8"]
[White "Tan, Jonathan"]
[Black "Ovetchkin, Roman"]
[Result "1-0"]
[Board "91"]
[TimeControl "180+1"]
[WhiteFideId "5200482"]
[BlackFideId "4119991"]
[WhiteElo "2510"]
[BlackElo "2640"]
[WhiteTeam "PHI"]
[BlackTeam "RUS"]
[WhiteClock "0:00:38"]
[BlackClock "0:00:38"]

1. d4 {[%clk 0:02:59]}  Nf6 {[%clk 0:02:59]} 2. Nc3 {[%clk 0:02:59]}  d5 {[%clk 0:02:59]} 3. Bf4 {[%clk 0:02:58]}  Bf5 {[%clk 0:02:58]} 4. f3 {[%clk 0:02:57]}  e6 {[%clk 0:02:57]} 5. g4 {[%clk 0:02:58]}  Bg6 {[%clk 0:02:57]} 6. h4 {[%clk 0:02:58]}  h5 {[%clk 0:02:56]} 7. g5 {[%clk 0:02:59]}  Nfd7 {[%clk 0:02:56]} 8. e4 {[%clk 0:02:59]}  c6 {[%clk 0:02:56]} 9. exd5 {[%clk 0:02:59]}  cxd5 {[%clk 0:02:54]} 10. Nb5 {[%clk 0:02:56]}  Na6 {[%clk 0:02:54]} 11. Bd3 {[%clk 0:02:51]}  Bxd3 {[%clk 0:02:51]} 12. Qxd3 {[%clk 0:02:51]}  g6 {[%clk 0:02:50]} 13. c3 {[%clk 0:02:47]}  Qb6 {[%clk 0:02:45]} 14. a4 {[%clk 0:02:46]}  Be7 {[%clk 0:02:43]} 15. Ne2 {[%clk 0:02:38]}  O-O {[%clk 0:02:43]} 16. Bg3 {[%clk 0:02:31]}  Rfc8 {[%clk 0:02:35]} 17. O-O {[%clk 0:02:24]}  Nab8 {[%clk 0:02:27]} 18. a5 {[%clk 0:02:07]}  Qc6 {[%clk 0:02:23]} 19. Nf4 {[%clk 0:01:54]}  Nf8 {[%clk 0:02:20]} 20. Rfc1 {[%clk 0:01:49]}  Nbd7 {[%clk 0:02:16]} 21. Qe2 {[%clk 0:01:40]}  a6 {[%clk 0:02:10]} 22. Na3 {[%clk 0:01:40]}  Bd6 {[%clk 0:02:10]} 23. Kg2 {[%clk 0:01:39]}  Re8 {[%clk 0:02:02]} 24. Nd3 {[%clk 0:01:36]}  Bxg3 {[%clk 0:02:00]} 25. Kxg3 {[%clk 0:01:36]}  Rac8 {[%clk 0:01:58]} 26. Nc2 {[%clk 0:01:34]}  Qd6+ {[%clk 0:01:56]} 27. f4 {[%clk 0:01:34]}  Nb8 {[%clk 0:01:51]} 28. Nce1 {[%clk 0:01:32]}  Nc6 {[%clk 0:01:50]} 29. Nf3 {[%clk 0:01:30]}  Ne7 {[%clk 0:01:50]} 30. Nfe5 {[%clk 0:01:27]}  Nf5+ {[%clk 0:01:50]} 31. Kh3 {[%clk 0:01:27]}  Rc7 {[%clk 0:01:46]} 32. b4 {[%clk 0:01:26]}  Rec8 {[%clk 0:01:45]} 33. Nc5 {[%clk 0:01:26]}  Qe7 {[%clk 0:01:42]} 34. Qf3 {[%clk 0:01:22]}  Rd8 {[%clk 0:01:40]} 35. Re1 {[%clk 0:01:21]}  Qd6 {[%clk 0:01:39]} 36. Re2 {[%clk 0:01:21]}  Qe7 {[%clk 0:01:39]} 37. Rae1 {[%clk 0:01:20]}  Qd6 {[%clk 0:01:38]} 38. Qd3 {[%clk 0:01:18]}  Kg7 {[%clk 0:01:38]} 39. Qf3 {[%clk 0:01:15]}  Nd7 {[%clk 0:01:33]} 40. Nxf7 {[%clk 0:01:10]}  Kxf7 {[%clk 0:01:32]} 41. Rxe6 {[%clk 0:00:58]}  Nxc5 {[%clk 0:00:50]} 42. Rxd6 {[%clk 0:00:56]}  Rxd6 {[%clk 0:00:51]} 43. bxc5 {[%clk 0:00:53]}  Rd8 {[%clk 0:00:51]} 44. Re5 {[%clk 0:00:44]}  Rcd7 {[%clk 0:00:48]} 45. Rxf5+ {[%clk 0:00:42]}  gxf5 {[%clk 0:00:48]} 46. Qxh5+ {[%clk 0:00:42]}  Kg8 {[%clk 0:00:46]} 47. Qg6+ {[%clk 0:00:43]}  Rg7 {[%clk 0:00:46]} 48. Qxf5 {[%clk 0:00:43]}  Re7 {[%clk 0:00:44]} 49. Kg4 {[%clk 0:00:40]}  Rf8 {[%clk 0:00:42]} 50. Qxd5+ {[%clk 0:00:39]}  Kg7 {[%clk 0:00:38]} 51. f5 {[%clk 0:00:38]} 1-0

[Event "December 5 Early 2023"]
[Site "https://www.chess.com"]
[Date "2023.12.05"]
[Round "8"]
[White "Senft, Sean"]
[Black "Belov, Alexei"]
[Result "1/2-1/2"]
[Board "92"]
[TimeControl "180+1"]
[WhiteFideId "2044960"]
[BlackFideId "4128206"]
[WhiteElo "2495"]
[BlackElo "2634"]
[WhiteTeam "USA"]
[BlackTeam "RUS"]
[WhiteClock "0:00:11"]
[BlackClock "0:00:10"]

1. d4 {[%clk 0:03:00]}  d5 {[%clk 0:02:59]} 2. c4 {[%clk 0:03:00]}  e6 {[%clk 0:03:00]} 3. Nc3 {[%clk 0:03:00]}  Be7 {[%clk 0:03:00]} 4. cxd5 {[%clk 0:03:00]}  exd5 {[%clk 0:03:00]} 5. Nf3 {[%clk 0:03:01]}  c6 {[%clk 0:03:00]} 6. Bf4 {[%clk 0:03:02]}  Bf5 {[%clk 0:02:59]} 7. e3 {[%clk 0:03:02]}  Nf6 {[%clk 0:02:59]} 8. Bd3 {[%clk 0:03:02]}  Bxd3 {[%clk 0:02:58]} 9. Qxd3 {[%clk 0:03:03]}  Nbd7 {[%clk 0:02:59]} 10. O-O {[%clk 0:03:04]}  O-O {[%clk 0:02:59]} 11. Ne5 {[%clk 0:03:04]}  Nxe5 {[%clk 0:02:57]} 12. Bxe5 {[%clk 0:03:05]}  Bd6 {[%clk 0:02:53]} 13. Bxd6 {[%clk 0:03:05]}  Qxd6 {[%clk 0:02:53]} 14. Rac1 {[%clk 0:03:05]}  Rfe8 {[%clk 0:02:51]} 15. a3 {[%clk 0:03:04]}  a5 {[%clk 0:02:51]} 16. Na4 {[%clk 0:03:01]}  Ne4 {[%clk 0:02:45]} 17. Nc5 {[%clk 0:03:00]}  Nxc5 {[%clk 0:02:39]} 18. Rxc5 {[%clk 0:02:57]}  a4 {[%clk 0:02:39]} 19. Rfc1 {[%clk 0:02:54]}  g6 {[%clk 0:02:36]} 20. Qc3 {[%clk 0:02:51]}  Qd7 {[%clk 0:02:14]} 21. Ra5 {[%clk 0:02:43]}  Qd8 {[%clk 0:01:54]} 22. Rxa8 {[%clk 0:02:40]}  Qxa8 {[%clk 0:01:54]} 23. Qb4 {[%clk 0:02:40]}  Qa6 {[%clk 0:01:52]} 24. h3 {[%clk 0:02:32]}  h5 {[%clk 0:01:51]} 25. Rc5 {[%clk 0:02:25]}  Ra8 {[%clk 0:01:38]} 26. Rc3 {[%clk 0:02:16]}  Kg7 {[%clk 0:01:34]} 27. Qe7 {[%clk 0:02:11]}  Qb5 {[%clk 0:01:29]} 28. Qe5+ {[%clk 0:02:05]}  Kg8 {[%clk 0:01:29]} 29. Rc2 {[%clk 0:02:00]}  Qb3 {[%clk 0:01:24]} 30. Rd2 {[%clk 0:01:59]}  Rf8 {[%clk 0:01:15]} 31. f4 {[%clk 0:01:55]}  Qa2 {[%clk 0:00:45]} 32. Rf2 {[%clk 0:01:03]}  Qb1+ {[%clk 0:00:44]} 33. Kh2 {[%clk 0:01:03]}  Qe1 {[%clk 0:00:39]} 34. Rf3 {[%clk 0:00:59]}  Qh4 {[%clk 0:00:24]} 35. f5 {[%clk 0:00:59]}  Qg5 {[%clk 0:00:19]} 36. Rg3 {[%clk 0:00:56]}  Qh6 {[%clk 0:00:18]} 37. fxg6 {[%clk 0:00:44]}  fxg6 {[%clk 0:00:18]} 38. Qe6+ {[%clk 0:00:44]}  Kh7 {[%clk 0:00:18]} 39. h4 {[%clk 0:00:31]}  Qg7 {[%clk 0:00:18]} 40. Rg5 {[%clk 0:00:29]}  Qf6 {[%clk 0:00:17]} 41. Re5 {[%clk 0:00:24]}  Qxe6 {[%clk 0:00:16]} 42. Rxe6 {[%clk 0:00:25]}  Kg7 {[%clk 0:00:15]} 43. Kg3 {[%clk 0:00:26]}  Kf7 {[%clk 0:00:15]} 44. Re5 {[%clk 0:00:23]}  Re8 {[%clk 0:00:15]} 45. Rxe8 {[%clk 0:00:21]}  Kxe8 {[%clk 0:00:15]} 46. Kf4 {[%clk 0:00:21]}  Ke7 {[%clk 0:00:15]} 47. Ke5 {[%clk 0:00:21]}  b6 {[%clk 0:00:12]} 48. Kf4 {[%clk 0:00:18]}  Kf6 {[%clk 0:00:12]} 49. e4 {[%clk 0:00:16]}  dxe4 {[%clk 0:00:11]} 50. Kxe4 {[%clk 0:00:17]}  Ke6 {[%clk 0:00:12]} 51. Kf4 {[%clk 0:00:15]}  Kf6 {[%clk 0:00:10]} 52. g3 {[%clk 0:00:13]}  b5 {[%clk 0:00:09]} 53. Ke4 {[%clk 0:00:13]}  Ke6 {[%clk 0:00:09]} 54. Kf4 {[%clk 0:00:13]}  Kf6 {[%clk 0:00:10]} 55. Ke3 {[%clk 0:00:13]}  Kf5 {[%clk 0:00:09]} 56. Kf3 {[%clk 0:00:13]}  Kf6 {[%clk 0:00:09]} 57. Kf4 {[%clk 0:00:14]}  Ke6 {[%clk 0:00:08]} 58. Kg5 {[%clk 0:00:15]}  Kf7 {[%clk 0:00:08]} 59. g4 {[%clk 0:00:12]}  hxg4 {[%clk 0:00:08]} 60. Kxg4 {[%clk 0:00:12]}  Kf6 {[%clk 0:00:09]} 61. Kf4 {[%clk 0:00:13]}  Ke6 {[%clk 0:00:09]} 62. Kg5 {[%clk 0:00:13]}  Kf7 {[%clk 0:00:10]} 63. Kf4 {[%clk 0:00:13]}  Kf6 {[%clk 0:00:10]} 64. Kg4 {[%clk 0:00:12]}  Kf7 {[%clk 0:00:09]} 65. Kg3 {[%clk 0:00:12]}  Kf6 {[%clk 0:00:10]} 66. Kf4 {[%clk 0:00:13]}  Ke6 {[%clk 0:00:10]} 67. Ke4 {[%clk 0:00:13]}  Kd6 {[%clk 0:00:09]} 68. Kf4 {[%clk 0:00:11]}  Ke6 {[%clk 0:00:10]} 1/2-1/2

[Event "December 5 Early 2023"]
[Site "https://www.chess.com"]
[Date "2023.12.05"]
[Round "8"]
[White "Guliev, Logman"]
[Black "Reprintsev, Alexander"]
[Result "0-1"]
[Board "94"]
[TimeControl "180+1"]
[WhiteFideId "13400061"]
[BlackFideId "14100541"]
[WhiteElo "2598"]
[BlackElo "2487"]
[WhiteTeam "AZE"]
[BlackTeam "UKR"]
[WhiteClock "0:00:00"]
[BlackClock "0:01:43"]

1. e4 {[%clk 0:03:00]}  d5 {[%clk 0:02:57]} 2. exd5 {[%clk 0:03:00]}  Qxd5 {[%clk 0:02:57]} 3. Nc3 {[%clk 0:02:59]}  Qa5 {[%clk 0:02:57]} 4. d4 {[%clk 0:02:58]}  Nf6 {[%clk 0:02:57]} 5. Nf3 {[%clk 0:02:58]}  Nc6 {[%clk 0:02:56]} 6. d5 {[%clk 0:02:56]}  Nb4 {[%clk 0:02:56]} 7. Bb5+ {[%clk 0:02:56]}  Bd7 {[%clk 0:02:55]} 8. Bxd7+ {[%clk 0:02:57]}  Nxd7 {[%clk 0:02:55]} 9. a3 {[%clk 0:02:58]}  Nf6 {[%clk 0:02:55]} 10. axb4 {[%clk 0:02:57]}  Qxa1 {[%clk 0:02:55]} 11. O-O {[%clk 0:02:57]}  Qa6 {[%clk 0:02:54]} 12. Qd4 {[%clk 0:02:53]}  Rd8 {[%clk 0:02:51]} 13. Bf4 {[%clk 0:02:47]}  Qb6 {[%clk 0:02:48]} 14. Qc4 {[%clk 0:02:44]}  c6 {[%clk 0:02:43]} 15. dxc6 {[%clk 0:02:27]}  Qxc6 {[%clk 0:02:40]} 16. Qa2 {[%clk 0:02:27]}  e6 {[%clk 0:02:35]} 17. Ne5 {[%clk 0:02:06]}  Qa6 {[%clk 0:02:33]} 18. Qb3 {[%clk 0:01:47]}  Bd6 {[%clk 0:02:28]} 19. b5 {[%clk 0:01:45]}  Qb6 {[%clk 0:02:25]} 20. Nc4 {[%clk 0:01:44]}  Bxf4 {[%clk 0:02:24]} 21. Nxb6 {[%clk 0:01:43]}  axb6 {[%clk 0:02:25]} 22. g3 {[%clk 0:01:37]}  Bd6 {[%clk 0:02:21]} 23. Rd1 {[%clk 0:01:30]}  Ke7 {[%clk 0:02:21]} 24. Qc4 {[%clk 0:01:28]}  Rd7 {[%clk 0:02:20]} 25. Na4 {[%clk 0:01:18]}  Rc7 {[%clk 0:02:15]} 26. Qh4 {[%clk 0:01:16]}  Rxc2 {[%clk 0:02:02]} 27. Nxb6 {[%clk 0:01:14]}  Rd8 {[%clk 0:01:57]} 28. Nc4 {[%clk 0:01:04]}  Bxg3 {[%clk 0:01:55]} 29. hxg3 {[%clk 0:00:52]}  Rxd1+ {[%clk 0:01:54]} 30. Kg2 {[%clk 0:00:52]}  g5 {[%clk 0:01:47]} 31. Qxg5 {[%clk 0:00:19]}  Rxc4 {[%clk 0:01:46]} 32. b6 {[%clk 0:00:00]}  Rd6 {[%clk 0:01:43]} 0-1

[Event "December 5 Early 2023"]
[Site "https://www.chess.com"]
[Date "2023.12.05"]
[Round "8"]
[White "Espinoza Villanueva, Rodrigo"]
[Black "Lehtosaari, Mauri"]
[Result "1/2-1/2"]
[Board "95"]
[TimeControl "180+1"]
[WhiteFideId "5140188"]
[BlackFideId "501999"]
[WhiteElo "2598"]
[BlackElo "2486"]
[WhiteTeam "MEX"]
[BlackTeam "FIN"]
[WhiteClock "0:00:06"]
[BlackClock "0:00:07"]

1. d4 {[%clk 0:03:00]}  d5 {[%clk 0:02:59]} 2. c4 {[%clk 0:03:01]}  c6 {[%clk 0:02:58]} 3. Nc3 {[%clk 0:03:02]}  Nf6 {[%clk 0:02:57]} 4. e3 {[%clk 0:03:02]}  a6 {[%clk 0:02:55]} 5. c5 {[%clk 0:03:00]}  Bf5 {[%clk 0:02:51]} 6. Nf3 {[%clk 0:02:58]}  Nbd7 {[%clk 0:02:47]} 7. Be2 {[%clk 0:02:58]}  h6 {[%clk 0:02:44]} 8. O-O {[%clk 0:02:58]}  Qc7 {[%clk 0:02:34]} 9. b4 {[%clk 0:02:57]}  e5 {[%clk 0:02:33]} 10. a4 {[%clk 0:02:54]}  Be7 {[%clk 0:02:32]} 11. Bd2 {[%clk 0:02:51]}  O-O {[%clk 0:02:29]} 12. Qb3 {[%clk 0:02:51]}  Bg4 {[%clk 0:02:23]} 13. Rfb1 {[%clk 0:02:43]}  Rfb8 {[%clk 0:02:04]} 14. b5 {[%clk 0:02:38]}  axb5 {[%clk 0:02:02]} 15. axb5 {[%clk 0:02:39]}  Bxf3 {[%clk 0:01:45]} 16. Bxf3 {[%clk 0:02:38]}  exd4 {[%clk 0:01:43]} 17. exd4 {[%clk 0:02:39]}  Nf8 {[%clk 0:01:41]} 18. g3 {[%clk 0:02:29]}  Ne6 {[%clk 0:01:40]} 19. Ne2 {[%clk 0:02:24]}  Nh7 {[%clk 0:01:21]} 20. Bg4 {[%clk 0:02:19]}  Nhf8 {[%clk 0:01:16]} 21. Be3 {[%clk 0:02:08]}  Bf6 {[%clk 0:01:13]} 22. h4 {[%clk 0:01:58]}  Rxa1 {[%clk 0:00:59]} 23. Rxa1 {[%clk 0:01:58]}  Nxc5 {[%clk 0:00:59]} 24. Qa3 {[%clk 0:01:38]}  Nce6 {[%clk 0:00:57]} 25. Rb1 {[%clk 0:01:36]}  Qd8 {[%clk 0:00:50]} 26. Qa7 {[%clk 0:01:30]}  cxb5 {[%clk 0:00:33]} 27. Rxb5 {[%clk 0:01:28]}  b6 {[%clk 0:00:34]} 28. Bf3 {[%clk 0:01:17]}  Qd6 {[%clk 0:00:33]} 29. Rxd5 {[%clk 0:01:15]}  Qc7 {[%clk 0:00:25]} 30. Qa2 {[%clk 0:01:09]}  b5 {[%clk 0:00:23]} 31. Qb3 {[%clk 0:01:08]}  b4 {[%clk 0:00:23]} 32. Kg2 {[%clk 0:00:51]}  Ng6 {[%clk 0:00:21]} 33. Qd3 {[%clk 0:00:38]}  Ne7 {[%clk 0:00:20]} 34. Rb5 {[%clk 0:00:35]}  Qd8 {[%clk 0:00:18]} 35. d5 {[%clk 0:00:27]}  Nf8 {[%clk 0:00:16]} 36. Bd2 {[%clk 0:00:24]}  Rxb5 {[%clk 0:00:14]} 37. Qxb5 {[%clk 0:00:24]}  Bc3 {[%clk 0:00:03]} 38. Nxc3 {[%clk 0:00:21]}  bxc3 {[%clk 0:00:04]} 39. Bxc3 {[%clk 0:00:22]}  Nfg6 {[%clk 0:00:04]} 40. Qc5 {[%clk 0:00:16]}  Nf5 {[%clk 0:00:02]} 41. Qc4 {[%clk 0:00:13]}  Nd6 {[%clk 0:00:02]} 42. Qd4 {[%clk 0:00:13]}  f6 {[%clk 0:00:02]} 43. Qd3 {[%clk 0:00:13]}  Ne5 {[%clk 0:00:03]} 44. Bxe5 {[%clk 0:00:13]}  fxe5 {[%clk 0:00:04]} 45. Qg6 {[%clk 0:00:10]}  Qe7 {[%clk 0:00:04]} 46. h5 {[%clk 0:00:09]}  e4 {[%clk 0:00:04]} 47. Bg4 {[%clk 0:00:10]}  Kf8 {[%clk 0:00:03]} 48. Be6 {[%clk 0:00:10]}  Qf6 {[%clk 0:00:04]} 49. Qg4 {[%clk 0:00:08]}  Ke7 {[%clk 0:00:04]} 50. Kf1 {[%clk 0:00:07]}  Qa1+ {[%clk 0:00:03]} 51. Kg2 {[%clk 0:00:07]}  Qe5 {[%clk 0:00:03]} 52. Qg6 {[%clk 0:00:06]}  Qf6 {[%clk 0:00:04]} 53. Qxf6+ {[%clk 0:00:06]}  Kxf6 {[%clk 0:00:04]} 54. Kf1 {[%clk 0:00:07]}  Ke5 {[%clk 0:00:05]} 55. Ke2 {[%clk 0:00:07]}  Nc4 {[%clk 0:00:04]} 56. Bg8 {[%clk 0:00:06]}  Nb6 {[%clk 0:00:04]} 57. Ke3 {[%clk 0:00:06]}  Nxd5+ {[%clk 0:00:05]} 58. Bxd5 {[%clk 0:00:06]}  Kxd5 {[%clk 0:00:06]} 59. f3 {[%clk 0:00:05]}  exf3 {[%clk 0:00:06]} 60. Kxf3 {[%clk 0:00:06]}  Ke5 {[%clk 0:00:06]} 61. g4 {[%clk 0:00:06]}  Ke6 {[%clk 0:00:06]} 62. Kf4 {[%clk 0:00:06]}  Kf6 {[%clk 0:00:06]} 63. Kf3 {[%clk 0:00:07]}  Ke5 {[%clk 0:00:06]} 64. Ke3 {[%clk 0:00:07]}  Ke6 {[%clk 0:00:06]} 65. Kf4 {[%clk 0:00:07]}  Kf6 {[%clk 0:00:06]} 66. Kg3 {[%clk 0:00:06]}  Ke5 {[%clk 0:00:06]} 67. Kf3 {[%clk 0:00:06]}  Ke6 {[%clk 0:00:07]} 68. Kf4 {[%clk 0:00:06]} 1/2-1/2

[Event "December 5 Early 2023"]
[Site "https://www.chess.com"]
[Date "2023.12.05"]
[Round "8"]
[White "Mizzi, Jack"]
[Black "Santos Flores, Alberto"]
[Result "1-0"]
[Board "101"]
[TimeControl "180+1"]
[WhiteFideId "5602521"]
[BlackFideId "3601234"]
[WhiteElo "2454"]
[BlackElo "2554"]
[WhiteTeam "MLT"]
[BlackTeam "ECU"]
[WhiteClock "0:00:27"]
[BlackClock "0:01:18"]

1. d4 {[%clk 0:03:00]}  Nf6 {[%clk 0:02:59]} 2. c4 {[%clk 0:03:00]}  d6 {[%clk 0:03:00]} 3. g3 {[%clk 0:02:59]}  e5 {[%clk 0:03:00]} 4. dxe5 {[%clk 0:02:58]}  dxe5 {[%clk 0:03:00]} 5. Qxd8+ {[%clk 0:02:59]}  Kxd8 {[%clk 0:03:01]} 6. Bg2 {[%clk 0:02:59]}  c6 {[%clk 0:02:59]} 7. Nf3 {[%clk 0:02:57]}  Bd6 {[%clk 0:02:55]} 8. O-O {[%clk 0:02:56]}  Kc7 {[%clk 0:02:53]} 9. Nc3 {[%clk 0:02:49]}  Be6 {[%clk 0:02:53]} 10. b3 {[%clk 0:02:43]}  h6 {[%clk 0:02:52]} 11. Bb2 {[%clk 0:02:42]}  Nbd7 {[%clk 0:02:52]} 12. Rfd1 {[%clk 0:02:41]}  Rad8 {[%clk 0:02:48]} 13. Rac1 {[%clk 0:02:39]}  Bf5 {[%clk 0:02:42]} 14. Na4 {[%clk 0:02:34]}  Rhe8 {[%clk 0:02:31]} 15. c5 {[%clk 0:02:21]}  Bf8 {[%clk 0:02:29]} 16. Bc3 {[%clk 0:02:09]}  Nd5 {[%clk 0:02:24]} 17. Ba5+ {[%clk 0:02:05]}  b6 {[%clk 0:02:24]} 18. cxb6+ {[%clk 0:02:01]}  axb6 {[%clk 0:02:25]} 19. Be1 {[%clk 0:02:00]}  Kb7 {[%clk 0:02:10]} 20. Nh4 {[%clk 0:01:50]}  Be6 {[%clk 0:02:08]} 21. e4 {[%clk 0:01:29]}  N5f6 {[%clk 0:02:04]} 22. Nf5 {[%clk 0:01:23]}  g6 {[%clk 0:02:00]} 23. Nd6+ {[%clk 0:01:07]}  Bxd6 {[%clk 0:02:00]} 24. Rxd6 {[%clk 0:01:07]}  Nb8 {[%clk 0:01:52]} 25. Bb4 {[%clk 0:00:58]}  c5 {[%clk 0:01:49]} 26. Rxb6+ {[%clk 0:00:57]}  Ka8 {[%clk 0:01:35]} 27. Rxc5 {[%clk 0:00:48]}  Rd7 {[%clk 0:01:30]} 28. Ra5+ {[%clk 0:00:34]}  Ra7 {[%clk 0:01:30]} 29. Rxa7+ {[%clk 0:00:30]}  Kxa7 {[%clk 0:01:31]} 30. Bc5 {[%clk 0:00:30]}  Nbd7 {[%clk 0:01:27]} 31. Rxe6+ {[%clk 0:00:27]}  Nxc5 {[%clk 0:01:18]} 32. Rxe8 {[%clk 0:00:27]} 1-0